bitfinex/quotes_ETHUSD_20241024
["timestamp","ask_amount","ask_price","bid_price","bid_amount"]
[1729777927235,3.95085,2531.1,2531.0,0.08369728]
[1729777927661,4.85475,2531.1,2531.0,0.08369728]
[1729777927840,5.82220639,2531.1,2531.0,0.01]
[1729777928225,5.82220639,2531.1,2530.7,0.01]
[1729777928226,3.95131,2530.8,2530.7,0.01]
[1729777928425,3.95147,2530.7,2530.6,0.01]
[1729777928657,3.95163,2530.6,2530.5,0.02]
[1729777929066,3.95163,2530.6,2530.0,10.02]
[1729777929067,3.95225,2530.2,2530.0,10.02]
[1729777929273,4.347635,2530.1,2530.0,10.01]
[1729777929863,4.347635,2530.1,2530.0,10.02]
[1729777930072,4.347635,2530.1,2530.0,10.01]
[1729777930424,3.95225,2530.2,2530.1,0.9036]
[1729777930826,6.95187,2530.5,2530.4,0.01]
[1729777931067,3.95146,2530.8,2530.6,0.01]
[1729777931237,3.0,2530.7,2530.6,0.01]
[1729777931566,3.95117,2530.9,2530.8,0.01]
[1729777931725,4.92390364,2530.9,2530.8,0.01]
[1729777932765,7.92390364,2530.9,2530.8,0.01]
[1729777933465,7.92390364,2530.9,2530.6,0.8565]
[1729777933466,3.95147,2530.7,2530.6,0.01]
[1729777933636,3.95147,2530.7,2530.3,0.0790335]
[1729777933637,3.95178,2530.5,2530.4,0.02]
[1729777934239,3.95166,2530.6,2530.4,0.02]
[1729777934429,3.95178,2530.5,2530.4,0.02]
[1729777934645,3.95225,2530.2,2530.0,10.01]
[1729777934882,3.95241,2530.1,2530.0,10.0]
[1729777935289,6.95241,2530.1,2530.0,10.0]
[1729777935794,7.32079346,2530.1,2530.0,10.0]
[1729777936394,7.32079346,2530.1,2530.0,10.0724901]
[1729777936687,3.95241,2530.1,2530.0,10.0824901]
[1729777936867,3.95241,2530.1,2530.0,10.0924901]
[1729777937991,3.95241,2530.1,2530.0,10.0824901]
[1729777938196,4.77871,2530.1,2530.0,10.0724901]
[1729777938493,8.93720616,2530.1,2530.0,10.0724901]
[1729777938645,8.93720616,2530.1,2530.0,7.95]
[1729777938843,8.93720616,2530.1,2530.0,8.0224901]
[1729777939990,8.93692717,2530.1,2530.0,8.0224901]
[1729777940159,8.93694273,2530.1,2530.0,8.0224901]
[1729777940489,9.119176,2530.1,2530.0,8.0224901]
[1729777940691,9.48677094,2530.1,2530.0,8.0224901]
[1729777941187,7.32000494,2530.1,2530.0,8.0324901]
[1729777941389,3.95241,2530.1,2530.0,8.0324901]
[1729777941896,3.95183,2530.5,2530.4,0.01]
[1729777942299,3.95183,2530.5,2530.4,0.08292568]
[1729777942503,7.60096431,2530.5,2530.4,0.07292568]
[1729777942670,3.9521,2530.3,2530.2,0.02]
[1729777943071,3.9521,2530.3,2530.2,0.01]
[1729777943390,3.9521,2530.3,2530.2,0.02]
[1729777943731,3.9521,2530.3,2530.0,7.95]
[1729777943732,4.50241,2530.1,2530.0,7.95]
[1729777944009,11.98099331,2530.1,2530.0,7.95]
[1729777944219,12.34857295,2530.1,2530.0,7.95]
[1729777944419,12.89857295,2530.1,2530.0,7.95]
[1729777944573,13.48649713,2530.1,2530.0,7.95]
[1729777944775,12.89857295,2530.1,2530.0,7.95]
[1729777945007,13.48648463,2530.1,2530.0,7.95]
[1729777945528,12.89857295,2530.1,2530.0,7.95]
[1729777947193,12.53099331,2530.1,2530.0,7.95]
[1729777947419,12.89819434,2530.1,2530.0,7.95]
[1729777949325,11.98099331,2530.1,2530.0,7.95]
[1729777949488,6.95241,2530.1,2530.0,7.95]
[1729777949686,10.60154431,2530.1,2530.0,8.02349205]
[1729777950326,6.95241,2530.1,2530.0,8.02349205]
[1729777950632,3.95196,2530.4,2530.3,0.01]
[1729777950786,3.9521,2530.3,2530.2,0.01]
[1729777951097,3.95241,2530.1,2530.0,7.97]
[1729777951487,3.95228,2530.2,2530.0,7.97]
[1729777951784,3.95241,2530.1,2530.0,7.97]
[1729777951985,7.60154431,2530.1,2530.0,7.95]
[1729777952186,7.60154431,2530.1,2530.0,7.96]
[1729777952421,8.84406674,2530.1,2530.0,7.95]
[1729777952590,8.84406674,2530.1,2530.0,7.96]
[1729777953230,8.84406674,2530.1,2530.0,7.95]
[1729777953629,8.84406674,2530.1,2530.0,7.96]
[1729777954222,8.84406674,2530.1,2530.0,7.95]
[1729777954426,8.84406674,2530.1,2530.0,7.96]
[1729777954629,5.19493243,2530.1,2530.0,7.96]
[1729777954833,8.84406674,2530.1,2530.0,7.95]
[1729777955001,11.84406674,2530.1,2530.0,7.95]
[1729777955732,11.84406674,2530.1,2530.0,7.96]
[1729777955733,6.95241,2530.1,2530.0,7.96]
[1729777955915,3.95232,2530.2,2530.0,8.804]
[1729777956087,3.95174,2530.6,2530.5,0.01]
[1729777956430,3.95163,2530.6,2530.5,0.02]
[1729777956601,4.57029745,2530.6,2530.5,0.01]
[1729777956805,4.57029745,2530.6,2530.5,0.02]
[1729777957004,3.9515,2530.7,2530.5,0.09258699]
[1729777957229,3.95126,2530.9,2530.7,0.01]
[1729777957395,3.95131,2530.8,2530.7,0.01]
[1729777957596,3.95131,2530.8,2530.7,0.08233017]
[1729777957786,3.95131,2530.8,2530.7,0.07233017]
[1729777957995,5.10648043,2530.8,2530.7,0.08233017]
[1729777958191,5.10648043,2530.8,2530.7,0.09233017]
[1729777958500,5.10648043,2530.8,2530.7,0.07233017]
[1729777958701,3.95163,2530.6,2530.5,0.01]
[1729777960133,3.95126,2530.9,2530.8,0.01]
[1729777961033,3.95131,2530.8,2530.7,0.01]
[1729777961338,5.50158343,2530.8,2530.7,0.01]
[1729777961631,5.50158343,2530.8,2529.9,3.9526]
[1729777961632,3.95163,2530.6,2530.5,0.01]
[1729777961987,3.95181,2530.5,2530.1,0.02]
[1729777962193,3.95241,2530.1,2530.0,7.95]
[1729777962507,5.10778943,2530.1,2530.0,7.95]
[1729777962688,5.47583634,2530.1,2530.0,7.95]
[1729777963426,5.10778943,2530.1,2530.0,7.95]
[1729777963599,5.47584619,2530.1,2530.0,7.95]
[1729777964643,4.32046676,2530.1,2530.0,7.95]
[1729777965228,3.95241,2530.1,2530.0,7.95]
[1729777965544,4.32058676,2530.1,2530.0,7.95]
[1729777966442,4.32060889,2530.1,2530.0,7.95]
[1729777966646,3.95241,2530.1,2530.0,7.95]
[1729777966948,3.95226,2530.2,2530.1,0.02]
[1729777967111,3.95226,2530.2,2530.0,7.95]
[1729777967311,3.95241,2530.1,2530.0,7.96]
[1729777967935,3.95199,2530.4,2530.2,0.8906]
[1729777968251,3.9521,2530.3,2530.2,0.8906]
[1729777969448,3.0,2530.5,2530.4,0.01]
[1729777969648,3.95191,2530.5,2530.4,0.01]
[1729777970348,3.64913431,2530.9,2530.8,0.02]
[1729777970349,3.95117,2530.9,2530.8,0.02]
[1729777971745,3.95117,2530.9,2530.8,0.09208267]
[1729777971947,3.95117,2530.9,2530.8,0.02]
[1729777972174,3.95117,2530.9,2530.8,0.09208267]
[1729777972320,3.95117,2530.9,2530.8,0.02]
[1729777972666,4.74139,2530.9,2530.8,0.02]
[1729777972836,4.74139,2530.9,2530.8,0.09208267]
[1729777973421,4.74139,2530.9,2530.8,0.02]
[1729777973618,3.95117,2530.9,2530.8,0.09208267]
[1729777975263,3.95061,2531.3,2531.2,0.9302]
[1729777975618,3.95023,2531.5,2531.2,1.0017692]
[1729777975904,0.95907604,2531.4,2531.2,1.0017692]
[1729777976158,4.3194054,2531.3,2531.2,1.0017692]
[1729777976369,4.3194054,2531.3,2531.2,0.0715692]
[1729777976551,8.55823343,2531.3,2531.2,0.0715692]
[1729777976728,3.95069,2531.2,2531.1,0.01]
[1729777977061,3.95069,2531.2,2530.8,0.01]
[1729777977062,3.95116,2530.9,2530.8,0.01]
[1729777977357,5.11005743,2530.9,2530.8,0.01]
[1729777978476,0.36868043,2530.9,2530.8,0.9101]
[1729777978765,3.95107,2531.0,2530.8,0.98172375]
[1729777978965,3.95116,2530.9,2530.8,0.98172375]
[1729777979120,4.31984103,2530.9,2530.8,0.98172375]
[1729777979320,4.31982621,2530.9,2530.8,0.98172375]
[1729777979666,3.95116,2530.9,2530.8,0.98172375]
[1729777980049,4.31981708,2530.9,2530.8,0.98172375]
[1729777980270,3.95116,2530.9,2530.8,0.98172375]
[1729777980768,3.95101,2531.0,2530.8,0.98172375]
[1729777981087,3.95055,2531.3,2531.1,0.01]
[1729777981286,3.95053,2531.3,2531.2,0.01]
[1729777981485,6.45173463,2531.3,2531.2,0.01]
[1729777981645,3.951,2531.0,2530.9,0.01]
[1729777982046,3.95116,2530.9,2530.8,0.02]
[1729777982550,4.31971316,2530.9,2530.8,0.02]
[1729777982961,4.31970906,2530.9,2530.8,0.02]
[1729777983164,5.14677997,2530.9,2530.8,0.02]
[1729777983484,4.77823091,2530.9,2530.8,0.02]
[1729777983860,3.951,2531.0,2530.8,0.02]
[1729777984100,3.95078,2531.2,2531.0,0.8834]
[1729777984244,3.95062,2531.3,2531.2,0.02]
[1729777984446,4.31900833,2531.3,2531.2,0.02]
[1729777985285,3.95062,2531.3,2531.2,0.02]
[1729777985653,4.31895151,2531.3,2531.2,0.01]
[1729777985856,5.14588566,2531.3,2531.2,0.02]
[1729777986186,3.951,2531.0,2530.9,0.01]
[1729777987092,7.31940101,2531.0,2530.9,0.01]
[1729777987399,7.31940101,2531.0,2530.1,0.01]
[1729777987400,3.95147,2530.7,2530.6,0.01]
[1729777987565,4.31987101,2530.7,2530.6,0.01]
[1729777987754,4.31987101,2530.7,2530.6,0.07952693]
[1729777987755,3.95147,2530.7,2530.6,0.07952693]
[1729777988659,3.95131,2530.8,2530.7,0.01]
[1729777989066,3.95131,2530.8,2530.7,0.07940202]
[1729777989251,4.31974228,2530.8,2530.7,0.07940202]
[1729777989447,3.95131,2530.8,2530.7,0.07940202]
[1729777989693,6.95118,2530.9,2530.8,0.01]
[1729777989867,7.31958606,2530.9,2530.8,0.01]
[1729777990197,8.40980506,2530.9,2530.8,0.01]
[1729777990493,4.31958606,2530.9,2530.8,0.01]
[1729777990698,6.95077,2531.2,2531.1,0.01]
[1729777990851,7.90869218,2531.2,2531.1,0.01]
[1729777991195,7.31920161,2531.2,2531.1,0.01]
[1729777991552,7.31920161,2531.2,2531.1,0.0788955]
[1729777991755,7.90876145,2531.2,2531.1,0.0788955]
[1729777991980,7.31920161,2531.2,2531.1,0.0788955]
[1729777992363,7.90885006,2531.2,2531.1,0.0788955]
[1729777992576,7.31920161,2531.2,2531.1,0.0788955]
[1729777993093,7.90884616,2531.2,2531.1,0.0688955]
[1729777993276,7.90884616,2531.2,2531.1,0.01]
[1729777993277,9.45970121,2531.2,2531.1,0.01]
[1729777993692,4.90884616,2531.2,2531.1,0.01]
[1729777993858,4.31920161,2531.2,2531.1,0.8597]
[1729777994058,4.31920161,2531.2,2531.1,0.9285955]
[1729777994488,0.36843161,2531.2,2531.1,0.9285955]
[1729777994755,5.39272011,2531.8,2531.5,0.01]
[1729777994985,5.15560047,2531.7,2531.5,0.01]
[1729777995187,3.94991,2531.7,2531.6,0.06825384]
[1729777995363,3.95007,2531.6,2531.5,0.02]
[1729777995556,0.36871086,2531.6,2531.5,0.02]
[1729777995758,0.36871086,2531.6,2531.5,0.97620532]
[1729777996001,4.31878086,2531.6,2531.5,0.97620532]
[1729777996389,0.36871086,2531.6,2531.5,0.97620532]
[1729777996697,4.56788992,2532.1,2532.0,0.01]
[1729777996899,7.1365688,2532.1,2532.0,0.01]
[1729777997080,10.1365688,2532.1,2532.0,0.07759751]
[1729777997455,9.8894733,2532.1,2532.0,0.07759751]
[1729777997654,9.27096338,2532.1,2532.0,0.07759751]
[1729777997887,9.27096338,2532.1,2532.0,0.01]
[1729777998095,8.68124218,2532.1,2532.0,0.07752419]
[1729777998554,6.27052604,2532.1,2532.0,0.07752419]
[1729777999191,5.31266643,2532.1,2532.0,0.07752419]
[1729777999390,5.31266643,2532.1,2532.0,0.01]
[1729778000259,6.27044632,2532.1,2532.0,0.01]
[1729778000465,6.27044632,2532.1,2532.0,0.07718549]
[1729778000778,5.31266643,2532.1,2532.0,0.07718549]
[1729778001106,0.36841945,2532.1,2532.0,0.95018549]
[1729778001669,0.36841945,2532.1,2532.0,0.07718549]
[1729778001670,4.31770945,2532.1,2532.0,0.07718549]
[1729778002401,4.31770945,2532.1,2532.0,0.01]
[1729778002986,4.31770945,2532.1,2532.0,0.07718549]
[1729778003167,4.31770945,2532.1,2532.0,0.01]
[1729778003367,4.31770945,2532.1,2532.0,0.07718549]
[1729778003675,4.31770945,2532.1,2532.0,0.01]
[1729778004112,8.216129,2532.5,2532.0,0.01]
[1729778004113,4.56702469,2532.5,2532.4,0.01]
[1729778004265,5.66240963,2532.5,2532.4,0.01]
[1729778004465,5.07332689,2532.5,2532.4,0.02]
[1729778005502,8.7224612,2532.5,2532.4,0.07667251]
[1729778005705,8.7224612,2532.5,2532.4,0.01]
[1729778006007,5.07332689,2532.5,2532.4,0.02]
[1729778006806,5.07332689,2532.5,2532.4,0.08667251]
[1729778007010,5.07332689,2532.5,2532.4,0.01]
[1729778007166,5.07332689,2532.5,2532.4,0.08667251]
[1729778007368,4.70539247,2532.5,2532.4,0.02]
[1729778007669,3.94869,2532.5,2532.4,0.02]
[1729778008372,3.94869,2532.5,2532.4,0.08667251]
[1729778009579,4.82279,2532.5,2532.4,0.08667251]
[1729778009798,4.82279,2532.5,2532.4,0.02]
[1729778010272,3.94869,2532.5,2532.4,0.02]
[1729778011206,3.94869,2532.5,2532.4,0.08667251]
[1729778011403,3.94869,2532.5,2532.4,0.02]
[1729778011577,3.94869,2532.5,2532.4,0.08667251]
[1729778011780,5.33066977,2532.5,2532.4,0.01]
[1729778012007,5.33066977,2532.5,2532.4,0.02]
[1729778012388,5.69838015,2532.5,2532.4,0.02]
[1729778012784,4.31640038,2532.5,2532.4,0.02]
[1729778012996,3.94869,2532.5,2532.4,0.08667251]
[1729778013306,3.94869,2532.5,2532.4,1.00077251]
[1729778013811,3.94852,2532.6,2532.4,1.00077251]
[1729778014315,3.94801,2533.0,2532.8,0.01]
[1729778014492,4.56046347,2533.2,2533.1,0.02]
[1729778014879,4.56046347,2533.2,2533.1,0.08544363]
[1729778015097,3.94766,2533.2,2533.1,0.02]
[1729778015282,2.92258765,2533.5,2533.1,0.02]
[1729778015283,3.94727,2533.4,2533.3,0.02]
[1729778015814,6.86927765,2533.8,2533.7,0.01]
[1729778015969,8.03826741,2533.8,2533.7,0.01]
[1729778016393,4.82118,2533.6,2533.5,0.01]
[1729778016601,8.4799097,2533.6,2533.5,0.01]
[1729778017010,3.94726,2533.4,2533.3,0.01]
[1729778017524,3.94713,2533.5,2533.0,0.02]
[1729778017525,3.94773,2533.1,2533.0,0.02]
[1729778017817,4.73726,2533.1,2533.0,0.02]
[1729778017993,4.73726,2533.1,2533.0,0.08267924]
[1729778018197,4.73726,2533.1,2533.0,0.02]
[1729778018883,4.73726,2533.1,2533.0,0.01]
[1729778019095,4.73726,2533.1,2533.0,0.02]
[1729778019296,4.73726,2533.1,2533.0,0.08267924]
[1729778019510,4.73726,2533.1,2533.0,0.02]
[1729778020330,4.73726,2533.1,2533.0,0.08267924]
[1729778020512,4.73726,2533.1,2533.0,0.02]
[1729778020984,4.73726,2533.1,2533.0,0.08049481]
[1729778021630,4.73726,2533.1,2533.0,0.02]
[1729778022832,4.73726,2533.1,2533.0,0.08049481]
[1729778023124,4.73726,2533.1,2533.0,0.02]
[1729778023330,3.94804,2532.9,2532.8,0.02]
[1729778023683,3.94804,2532.9,2532.8,0.01]
[1729778023899,3.94804,2532.9,2532.6,0.01]
[1729778023900,3.94835,2532.7,2532.6,0.02]
[1729778025820,3.94798,2533.0,2532.6,0.02]
[1729778026025,3.94798,2533.0,2532.9,0.01]
[1729778026198,4.721731,2533.0,2532.9,0.01]
[1729778027419,3.94819,2532.8,2532.7,0.01]
[1729778027800,3.94819,2532.8,2532.7,0.07107765]
[1729778028189,3.94819,2532.8,2532.7,0.08107765]
[1729778028439,3.94819,2532.8,2532.7,0.07107765]
[1729778028604,4.8151881,2532.8,2532.7,0.01]
[1729778031619,4.8151881,2532.8,2532.7,0.07122725]
[1729778032009,4.8151881,2532.8,2532.7,0.01]
[1729778032414,4.8151881,2532.8,2532.7,0.07122725]
[1729778032798,4.8151881,2532.8,2532.7,0.01]
[1729778033290,3.94835,2532.7,2532.6,0.01]
[1729778033519,5.21950781,2532.7,2532.6,0.01]
[1729778033728,0.8374,2532.6,2532.2,0.01]
[1729778033926,3.94882,2532.4,2532.3,0.01]
[1729778034488,1.27115781,2532.7,2532.6,0.01]
[1729778034799,3.0,2532.9,2532.8,0.01]
[1729778034800,6.94804,2532.9,2532.8,0.01]
[1729778036322,7.3159425,2532.9,2532.8,0.01]
[1729778036520,4.3159425,2532.9,2532.8,0.01]
[1729778036692,4.3159425,2532.9,2532.8,0.02]
[1729778037694,4.3159425,2532.9,2532.8,0.01]
[1729778037889,4.3159425,2532.9,2532.6,0.01]
[1729778037890,3.94835,2532.7,2532.6,0.01]
[1729778038091,7.23793781,2532.7,2532.6,0.01]
[1729778038290,3.94866,2532.5,2532.4,0.02]
[1729778038495,4.31693125,2532.5,2532.4,0.02]
[1729778039344,3.94866,2532.5,2532.4,0.02]
[1729778040444,4.31737698,2532.5,2532.4,0.08166405]
[1729778040659,4.31737698,2532.5,2532.4,0.02]
[1729778040814,4.31736857,2532.5,2532.4,0.08166405]
[1729778041145,3.94857,2532.6,2532.4,0.99386405]
[1729778041345,8.52292941,2533.2,2532.4,0.99386405]
[1729778041346,3.94819,2532.8,2532.7,0.02]
[1729778041646,4.90726957,2532.8,2532.7,0.08131074]
[1729778041946,4.90726113,2532.8,2532.7,0.08131074]
[1729778042347,0.95907113,2532.8,2532.7,0.08131074]
[1729778042555,0.36887676,2532.8,2532.7,0.96881074]
[1729778042863,0.36887676,2532.8,2532.7,4.85585]
[1729778043026,3.94776,2533.1,2533.0,0.01]
[1729778043226,4.31668625,2533.1,2533.0,0.02]
[1729778043546,0.36892625,2533.1,2533.0,0.08084617]
[1729778044022,4.31665625,2533.1,2533.0,0.08084617]
[1729778044223,0.36892625,2533.1,2533.0,0.08084617]
[1729778044426,3.94732,2533.4,2533.0,0.94724617]
[1729778044627,3.94732,2533.4,2533.3,0.02]
[1729778044958,4.90643759,2533.4,2533.3,0.02]
[1729778045161,4.90643583,2533.4,2533.3,0.08046172]
[1729778045317,0.3688907,2533.4,2533.3,0.02]
[1729778045849,0.3688907,2533.4,2533.3,4.89428172]
[1729778046153,3.94696,2533.6,2533.3,1.83995412]
[1729778046323,3.94696,2533.6,2533.5,0.01]
[1729778046725,4.31559104,2533.6,2533.5,0.07004198]
[1729778046926,4.31559104,2533.6,2533.5,0.01]
[1729778047124,0.36863104,2533.6,2533.5,0.08004198]
[1729778047340,0.36863104,2533.6,2533.5,0.02]
[1729778047512,0.36863104,2533.6,2533.5,0.08004198]
[1729778047716,3.94627,2534.1,2534.0,0.02]
[1729778047919,4.90434036,2534.1,2534.0,0.02]
[1729778048263,0.3684886,2534.1,2534.0,0.02]
[1729778048429,4.79104,2534.7,2534.6,0.01]
[1729778048752,6.39019447,2534.7,2534.6,0.01]
[1729778048959,5.77637871,2534.7,2534.6,0.06851162]
[1729778049160,5.18712322,2534.7,2534.6,0.06851162]
[1729778049634,5.18682861,2534.7,2534.6,0.06851162]
[1729778050151,4.31320761,2534.7,2534.6,0.01]
[1729778050356,3.94524,2534.7,2534.6,0.06851162]
[1729778050535,3.94524,2534.7,2534.6,0.90921162]
[1729778051029,3.9443,2535.3,2535.2,0.01]
[1729778051213,3.9443,2535.3,2535.2,0.8899]
[1729778051418,3.9443,2535.3,2535.2,0.94680233]
[1729778052061,3.94413,2535.5,2535.4,0.02]
[1729778052269,3.94308,2536.1,2536.0,0.01]
[1729778052443,4.337388,2536.1,2536.0,0.01]
[1729778052813,4.337388,2536.1,2535.9,0.01]
[1729778052814,3.94321,2536.0,2535.9,0.02]
[1729778053818,4.84111,2536.0,2535.9,0.02]
[1729778054229,4.84111,2536.0,2535.9,0.01]
[1729778054559,3.94352,2535.8,2535.7,0.01]
[1729778054746,3.94352,2535.8,2535.5,0.02]
[1729778054747,3.94383,2535.6,2535.5,0.02]
[1729778055255,3.94446,2535.2,2535.1,0.02]
[1729778055763,3.94446,2535.2,2535.1,0.01]
[1729778056055,3.94446,2535.2,2534.9,0.01]
[1729778056056,3.94477,2535.0,2534.9,0.01]
[1729778056427,5.49433094,2535.0,2534.9,0.01]
[1729778057253,3.94492,2534.9,2534.8,0.01]
[1729778057551,4.86048,2534.8,2534.7,0.01]
[1729778058053,3.94508,2534.8,2534.7,0.01]
[1729778058258,5.28351309,2534.8,2534.7,0.01]
[1729778059489,3.94508,2534.8,2534.7,0.01]
[1729778059989,3.94479,2535.0,2534.9,0.01]
[1729778060562,3.94479,2535.0,2534.9,0.06503988]
[1729778060763,3.94463,2535.1,2535.0,0.01]
[1729778061389,3.94463,2535.1,2535.0,0.06491192]
[1729778061696,4.733541,2535.1,2535.0,0.06491192]
[1729778062070,4.733541,2535.1,2535.0,0.01]
[1729778063186,4.733541,2535.1,2535.0,0.06480793]
[1729778063901,4.733541,2535.1,2535.0,0.01]
[1729778064209,3.94477,2535.0,2534.9,0.02]
[1729778064501,3.94477,2535.0,2534.7,0.02]
[1729778064502,3.94508,2534.8,2534.7,0.02]
[1729778065968,3.94495,2534.9,2534.8,0.8678]
[1729778066276,3.94495,2534.9,2534.8,0.92286388]
[1729778067660,3.94495,2534.9,2534.8,0.8678]
[1729778068412,3.94508,2534.8,2534.7,0.02]
[1729778068899,3.94508,2534.8,2534.7,0.07332244]
[1729778069287,3.9448,2535.0,2534.9,0.01]
[1729778069604,3.9448,2535.0,2534.9,0.94986993]
[1729778069767,3.94455,2535.2,2535.1,0.02]
[1729778070163,3.94455,2535.2,2535.1,0.07278979]
[1729778070469,4.83421,2535.8,2535.6,0.01]
[1729778070669,0.483421,2535.7,2535.6,0.01]
[1729778070979,4.427101,2535.7,2535.6,0.01]
[1729778071181,3.94368,2535.7,2535.6,0.06208791]
[1729778071712,3.94333,2536.0,2535.9,0.02]
[1729778071930,3.94333,2536.0,2535.9,0.8664]
[1729778072416,3.94333,2536.0,2535.9,0.91796594]
[1729778072570,3.94333,2536.0,2535.9,0.8664]
[1729778072769,3.94333,2536.0,2535.9,0.91612736]
[1729778074009,3.94333,2536.0,2535.9,0.06972736]
[1729778074210,4.731971,2536.0,2535.9,0.02]
[1729778075167,7.731971,2536.0,2535.7,0.01]
[1729778075317,7.60526941,2535.8,2535.7,0.01]
[1729778075649,3.94368,2535.7,2535.6,0.01]
[1729778075810,5.49291494,2535.7,2535.6,0.01]
[1729778078027,3.94368,2535.7,2535.6,0.01]
[1729778079262,3.94368,2535.7,2535.6,0.8997]
[1729778079462,3.94368,2535.7,2535.6,0.94981102]
[1729778079960,7.88713,2535.8,2535.7,0.01]
[1729778080255,3.94352,2535.8,2535.7,0.05998312]
[1729778081224,3.94352,2535.8,2535.7,0.01]
[1729778081446,3.94352,2535.8,2535.7,0.05968232]
[1729778081667,3.94352,2535.8,2535.7,0.06968232]
[1729778081870,3.94352,2535.8,2535.7,0.02]
[1729778083171,3.94352,2535.8,2535.7,0.06968232]
[1729778084060,3.94315,2536.1,2535.9,0.02]
[1729778084220,3.94321,2536.0,2535.9,0.8583]
[1729778085267,4.85508,2536.7,2536.6,0.01]
[1729778085429,6.49514594,2536.7,2536.6,0.01]
[1729778086129,3.94244,2536.5,2536.4,0.01]
[1729778086835,10.60418941,2536.5,2536.4,0.01]
[1729778087341,3.9429,2536.2,2536.1,0.02]
[1729778090776,3.9429,2536.2,2536.1,0.90406692]
[1729778090959,3.9429,2536.2,2536.1,0.8551]
[1729778091146,3.9429,2536.2,2536.1,0.90406692]
[1729778092559,3.94275,2536.3,2536.1,0.90406692]
[1729778093375,3.94215,2536.7,2536.6,0.8973]
[1729778093903,3.94215,2536.7,2536.6,0.9453928]
[1729778094765,3.94212,2536.7,2536.6,0.8973]
[1729778095002,3.94212,2536.7,2536.6,0.9453928]
[1729778095873,3.94104,2537.4,2537.3,0.02]
[1729778096266,4.729235,2537.4,2537.3,0.05683582]
[1729778096460,4.729235,2537.4,2537.1,0.01]
[1729778096461,3.94135,2537.2,2537.1,0.01]
[1729778096864,3.9415,2537.1,2537.0,0.01]
[1729778097068,7.60324941,2537.1,2537.0,0.01]
[1729778097266,9.15183135,2537.1,2537.0,0.01]
[1729778097582,9.15183135,2537.1,2536.9,0.01]
[1729778097583,3.94166,2537.0,2536.9,0.01]
[1729778097794,3.94166,2537.0,2536.8,0.01]
[1729778097795,3.94181,2536.9,2536.8,0.01]
[1729778098107,3.94181,2536.9,2536.7,0.01]
[1729778098108,6.94197,2536.8,2536.7,0.01]
[1729778098315,8.515164,2536.8,2536.7,0.01]
[1729778098976,3.94212,2536.7,2536.6,0.02]
[1729778100564,3.94212,2536.7,2536.6,0.01]
[1729778100766,3.94244,2536.5,2536.4,0.02]
[1729778100978,3.94244,2536.5,2536.4,0.01]
[1729778101192,5.49130194,2536.5,2536.4,0.01]
[1729778101605,3.94215,2536.7,2536.6,0.01]
[1729778101772,3.94215,2536.7,2536.6,0.02]
[1729778102370,3.942,2536.8,2536.6,0.06773018]
[1729778102877,3.9419,2536.9,2536.8,0.01]
[1729778103092,3.9419,2536.9,2536.8,0.02]
[1729778103291,3.94181,2536.9,2536.8,0.02]
[1729778103773,4.730167,2536.9,2536.8,0.02]
[1729778103969,8.39191641,2536.9,2536.8,0.01]
[1729778104221,8.39191641,2536.9,2536.8,0.02]
[1729778104396,8.39191641,2536.9,2536.8,0.01]
[1729778104608,3.9429,2536.2,2536.1,0.01]
[1729778104776,3.9429,2536.2,2536.0,0.01]
[1729778104777,5.556568,2536.2,2536.0,0.01]
[1729778105113,3.94306,2536.1,2536.0,0.01]
[1729778105829,3.66174941,2536.3,2536.0,0.01]
[1729778106031,2.67292918,2537.7,2536.0,0.01]
[1729778106032,3.0,2537.0,2536.8,3.94192]
[1729778106177,4.81372,2538.1,2536.6,3.94222]
[1729778106178,3.94061,2537.7,2537.5,0.01]
[1729778106378,0.8737,2538.1,2537.7,0.01]
[1729778106610,3.94011,2538.0,2537.9,0.01]
[1729778106820,4.35017417,2538.0,2537.9,0.01]
[1729778106972,0.8737,2538.1,2537.9,0.01]
[1729778107173,3.93971,2538.3,2538.1,0.01]
[1729778107408,0.875441,2538.3,2538.1,0.01]
[1729778107611,0.8253,2538.4,2538.3,0.01]
[1729778107807,3.88964,2538.3,2538.2,0.01]
[1729778108007,0.8253,2538.4,2537.8,0.9003]
[1729778108008,3.9398,2538.2,2538.1,0.01]
[1729778108221,3.93973,2538.3,2538.1,0.01]
[1729778108383,3.93979,2538.2,2537.9,0.01]
[1729778108583,3.94011,2538.0,2537.9,0.01]
[1729778108827,7.60153941,2538.2,2537.9,0.01]
[1729778108988,3.94011,2538.0,2537.9,0.01]
[1729778109392,3.94011,2538.0,2537.8,0.01]
[1729778109819,3.94011,2538.0,2537.5,0.9003]
[1729778109820,3.94042,2537.8,2537.5,0.01]
[1729778110021,3.94058,2537.7,2537.5,0.01]
[1729778110221,3.94045,2537.8,2537.5,0.01]
[1729778110523,3.94045,2537.8,2537.6,0.04457772]
[1729778110524,6.94057,2537.7,2537.6,0.04457772]
[1729778110726,3.0,2537.6,2537.4,0.02]
[1729778110879,3.0,2538.1,2537.7,0.01]
[1729778111077,3.0,2538.1,2537.8,0.01]
[1729778111279,3.78263,2538.1,2537.8,0.01]
[1729778111481,3.78263,2538.1,2537.9,0.04419466]
[1729778111681,7.7226,2538.1,2537.8,0.01]
[1729778112122,6.94011,2538.0,2537.9,0.04419466]
[1729778112426,3.94026,2537.9,2537.8,0.01]
[1729778112606,3.0,2538.0,2537.8,0.01]